Workbook

Sheet Sheet1
A1: Sand Falling Onto Conical Pile Problem
B3: This DIGMath module lets you investigate
B4: the related rates calculus problem of finding
B5: the rate at which the height
B6: of a conical pile of sand grows
B7: when additional sand is falling onto the pile
C8: at a given rate.
A11: The radius r of the base is a fixed multiple of the height h.
A12: What is that fixed multiple (0.1 - 2.0)?
D13: 14 | E13: =#REF!+D13*(#REF!-#REF!)/100 ->  | F13: =D13/10 -> 1.4
A16: How fast, in cubic feet per minute, is sand falling (1 - 10)?
D17: 9 | E17: =#REF!+D17*(#REF!-#REF!)/100 ->  | F17: =D17 -> 9
L24: Select the height of the conical pile: h0 = | P24: =1+O25/10 -> 6.8 | Q24: feet
O25: 58 | P25: =Sheet2!#REF!+O25*(Sheet2!#REF!-Sheet2!#REF!)/100 -> 
M27: The volume of sand in the pile is | P27: =Sheet2!I8 -> 161.3 | Q27: cubic feet
M29: The height of the pile is growing at a rate of
P30: =Sheet2!I17 -> 0.1 | Q30: feet per minute
A33: Click each item below for suggestions and investigations
C34: Item 1
C35: Item 2
C36: Item 3
A39: To access/download all the DIGMath Apps for Calculus
A40: Click this link: | C40: DIGMath for Calculus
A42: Created by: Sheldon P. Gordon
A43: Farmingdale State College
A44: Development of this module was supported by the
A45: NSF's Division of Undergraduate Education
A46: under grants DUE-0310123 and DUE-0442160.

Sheet Sheet2
B1: h | C1: V | D1: dh/dt
A3: 0 | B3: 1.0 | C3: =PI()*k^2*B3^3/12 -> 0.5131268001 | D3: =4/PI()/k^2/B3^2*dh -> 5.846508114
A4: 1 | B4: =B3+0.1 -> 1.1 | C4: 0.6829717709 | D4: 4.831824887
A5: 2 | B5: =B4+0.1 -> 1.2 | C5: 0.8866831105 | D5: 4.060075079 | G5: First Chart
A6: 3 | B6: 1.3 | C6: 1.12733958 | D6: 3.459472257 | G6: Vertical Line
A7: 4 | B7: 1.4 | C7: 1.408019939 | D7: 2.982912303 | H7: =G12 -> 6.8 | I7: 0
A8: 5 | B8: 1.5 | C8: 1.73180295 | D8: 2.59844805 | H8: =G12 -> 6.8 | I8: =LOOKUP(x0,B3:H253,C3:C253) -> 161.343486
A9: 6 | B9: 1.6 | C9: 2.101767373 | D9: 2.283792232
A10: 7 | B10: 1.7 | C10: 2.520991969 | D10: 2.023013188
A11: 8 | B11: 1.8 | C11: 2.992555498 | D11: 1.804477813 | G11: Point
A12: 9 | B12: 1.9 | C12: 3.519536722 | D12: 1.619531333 | G12: =x0 -> 6.8 | H12: 0
A13: 10 | B13: 2.0 | C13: 4.105014401 | D13: 1.461627028
A14: 11 | B14: 2.1 | C14: 4.752067296 | D14: 1.325738801 | G14: Second Chart
A15: 12 | B15: 2.2 | C15: 5.463774167 | D15: 1.207956222 | G15: Vertical Line
A16: 13 | B16: 2.3 | C16: 6.243213777 | D16: 1.105200021 | H16: =G21 -> 6.8 | I16: 0
A17: 14 | B17: 2.4 | C17: 7.093464884 | D17: 1.01501877 | H17: =G21 -> 6.8 | I17: =LOOKUP(x0,B12:H262,D12:D262) -> 0.1264383243
A18: 15 | B18: 2.5 | C18: 8.017606251 | D18: 0.9354412982
A19: 16 | B19: 2.6 | C19: 9.018716638 | D19: 0.8648680641
A20: 17 | B20: 2.7 | C20: 10.09987481 | D20: 0.801990139 | G20: Point
A21: 18 | B21: 2.8 | C21: 11.26415952 | D21: 0.7457280757 | G21: =x0 -> 6.8 | H21: 0
A22: 19 | B22: 2.9 | C22: 12.51464953 | D22: 0.6951852692
A23: 20 | B23: 3.0 | C23: 13.8544236 | D23: 0.6496120126 | G23: Point on curve
A24: 21 | B24: 3.1 | C24: 15.2865605 | D24: 0.6083775352 | G24: x= | H24: =G12*H5 -> 0
A25: 22 | B25: 3.2 | C25: 16.81413899 | D25: 0.570948058 | F25: x0 = | G25: =x0 -> 6.8 | H25: =LOOKUP(x0,B3:B84,C3:C84) -> 161.343486
A26: 23 | B26: 3.3 | C26: 18.44023781 | D26: 0.5368694319 | F26: y0 = | G26: =Area/x0+2*k -> 3.005882353
A27: 24 | B27: 3.4 | C27: 20.16793575 | D27: 0.505753297
A28: 25 | B28: 3.5 | C28: 22.00031155 | D28: 0.4772659685 | G28: =(x0+2*h)*y0 -> 74.54588235
A29: 26 | B29: 3.6 | C29: 23.94044398 | D29: 0.4511194532
A30: 27 | B30: 3.7 | C30: 25.9914118 | D30: 0.4270641427
A31: 28 | B31: 3.8 | C31: 28.15629377 | D31: 0.4048828334
A32: 29 | B32: 3.9 | C32: 30.43816865 | D32: 0.3843858063
A33: 30 | B33: 4.0 | C33: 32.84011521 | D33: 0.3654067571
A34: 31 | B34: 4.1 | C34: 35.36521219 | D34: 0.3477994119
A35: 32 | B35: 4.2 | C35: 38.01653836 | D35: 0.3314347003
A36: 33 | B36: 4.3 | C36: 40.79717249 | D36: 0.3161983836
A37: 34 | B37: 4.4 | C37: 43.71019334 | D37: 0.3019890555
A38: 35 | B38: 4.5 | C38: 46.75867966 | D38: 0.2887164501
A39: 36 | B39: 4.6 | C39: 49.94571021 | D39: 0.2763000054
A40: 37 | B40: 4.7 | C40: 53.27436377 | D40: 0.2646676376
A41: 38 | B41: 4.8 | C41: 56.74771908 | D41: 0.2537546924
A42: 39 | B42: 4.9 | C42: 60.3688549 | D42: 0.2435030451
A43: 40 | B43: 5.0 | C43: 64.14085001 | D43: 0.2338603245
A44: 41 | B44: 5.1 | C44: 68.06678316 | D44: 0.2247792431
A45: 42 | B45: 5.2 | C45: 72.14973311 | D45: 0.216217016
A46: 43 | B46: 5.3 | C46: 76.39277862 | D46: 0.2081348563
A47: 44 | B47: 5.4 | C47: 80.79899845 | D47: 0.2004975348
A48: 45 | B48: 5.5 | C48: 85.37147136 | D48: 0.1932729955
A49: 46 | B49: 5.6 | C49: 90.11327612 | D49: 0.1864320189
A50: 47 | B50: 5.7 | C50: 95.02749149 | D50: 0.1799479259
A51: 48 | B51: 5.8 | C51: 100.1171962 | D51: 0.1737963173
A52: 49 | B52: 5.9 | C52: 105.3854691 | D52: 0.1679548438
A53: 50 | B53: 6.0 | C53: 110.8353888 | D53: 0.1624030032
A54: 51 | B54: 6.1 | C54: 116.4700342 | D54: 0.1571219595
A55: 52 | B55: 6.2 | C55: 122.292484 | D55: 0.1520943838
A56: 53 | B56: 6.3 | C56: 128.305817 | D56: 0.1473043113
A57: 54 | B57: 6.4 | C57: 134.5131119 | D57: 0.1427370145
A58: 55 | B58: 6.5 | C58: 140.9174475 | D58: 0.1383788903
A59: 56 | B59: 6.6 | C59: 147.5219025 | D59: 0.134217358
A60: 57 | B60: 6.7 | C60: 154.3295558 | D60: 0.1302407688
A61: 58 | B61: 6.8 | C61: 161.343486 | D61: 0.1264383243
A62: 59 | B62: 6.9 | C62: 168.566772 | D62: 0.1228000024
A63: 60 | B63: 7.0 | C63: 176.0024924 | D63: 0.1193164921
A64: 61 | B64: 7.1 | C64: 183.6537261 | D64: 0.1159791334
A65: 62 | B65: 7.2 | C65: 191.5235519 | D65: 0.1127798633
A66: 63 | B66: 7.3 | C66: 199.6150484 | D66: 0.1097111675
A67: 64 | B67: 7.4 | C67: =PI()*k^2*B67^3/12 -> 207.9312944 | D67: =4/PI()/k^2/B67^2*dh -> 0.1067660357
A68: 65 | B68: 7.5 | C68: 216.4753688 | D68: 0.103937922
A69: 66 | B69: =B68+0.1 -> 7.6 | C69: 225.2503502 | D69: 0.1012207083
A70: 67 | B70: 7.7 | C70: 234.2593174 | D70: 0.09860867117
A71: 68 | B71: 7.8 | C71: 243.5053492 | D71: 0.09609645157
A72: 69 | B72: 7.9 | C72: 252.9915244 | D72: 0.09367902762
A73: 70 | B73: 8.0 | C73: 262.7209216 | D73: 0.09135168927
A74: 71 | B74: 8.1 | C74: 272.6966198 | D74: 0.08911001545
A75: 72 | B75: 8.2 | C75: 282.9216975 | D75: 0.08694985297
A76: 73 | B76: 8.3 | C76: 293.3992336 | D76: 0.08486729734
A77: 74 | B77: 8.4 | C77: 304.1323069 | D77: 0.08285867508
A78: 75 | B78: 8.5 | C78: 315.1239961 | D78: 0.08092052752
A79: 76 | B79: 8.6 | C79: 326.37738 | D79: 0.07904959591
A80: 77 | B80: 8.7 | C80: 337.8955372 | D80: 0.07724280768
A81: 78 | B81: 8.8 | C81: 349.6815467 | D81: 0.07549726386
A82: 79 | B82: 8.9 | C82: 361.7384871 | D82: 0.07381022742
A83: 80 | B83: 9.0 | C83: 374.0694373 | D83: 0.07217911251
B84: 9.1 | C84: 386.6774759 | D84: 0.07060147462
B85: 9.2 | C85: 399.5656817 | D85: 0.06907500134
B86: 9.3 | C86: 412.7371335 | D86: 0.06759750391
B87: 9.4 | C87: 426.1949101 | D87: 0.06616690939
B88: 9.5 | C88: 439.9420902 | D88: 0.06478125334
B89: 9.6 | C89: 453.9817526 | D89: 0.06343867311
B90: 9.7 | C90: 468.316976 | D90: 0.06213740157
B91: 9.8 | C91: 482.9508392 | D91: 0.06087576128
B92: 9.9 | C92: 497.886421 | D92: 0.0596521591
B93: 10.0 | C93: 513.1268001 | D93: 0.05846508114
B94: 10.1 | C94: 528.6750553 | D94: 0.05731308807
B95: 10.2 | C95: 544.5342653 | D95: 0.05619481078
B96: 10.3 | C96: 560.7075089 | D96: 0.05510894631
B97: 10.4 | C97: 577.1978649 | D97: 0.05405425401
B98: 10.5 | C98: 594.0084119 | D98: 0.05302955205
B99: 10.6 | C99: 611.1422289 | D99: 0.05203371408
B100: 10.7 | C100: 628.6023946 | D100: 0.05106566612
B101: 10.8 | C101: 646.3919876 | D101: 0.05012438369
B102: 10.9 | C102: 664.5140868 | D102: 0.0492088891
B103: 11.0 | C103: 682.9717709 | D103: 0.04831824887
B104: 11.1 | C104: 701.7681187 | D104: 0.04745157141
B105: 11.2 | C105: 720.906209 | D105: 0.04660800473
B106: 11.3 | C106: 740.3891205 | D106: 0.04578673438
B107: 11.4 | C107: 760.2199319 | D107: 0.04498698148
B108: 11.5 | C108: 780.4017221 | D108: 0.04420800086
B109: 11.6 | C109: 800.9375697 | D109: 0.04344907932
B110: 11.7 | C110: 821.8305537 | D110: 0.04270953403
B111: 11.8 | C111: 843.0837526 | D111: 0.04198871096
B112: 11.9 | C112: 864.7002453 | D112: 0.04128598343
B113: 12.0 | C113: 886.6831105 | D113: 0.04060075079
B114: 12.1 | C114: 909.0354271 | D114: 0.03993243708
B115: 12.2 | C115: 931.7602737 | D115: 0.03928048988
B116: 12.3 | C116: 954.8607291 | D116: 0.0386443791
B117: 12.4 | C117: 978.3398721 | D117: 0.03802359595
B118: 12.5 | C118: 1002.200781 | D118: 0.03741765193
B119: 12.6 | C119: 1026.446536 | D119: 0.03682607781
B120: 12.7 | C120: 1051.080214 | D120: 0.0362484228
B121: 12.8 | C121: 1076.104895 | D121: 0.03568425362
B122: 12.9 | C122: 1101.523657 | D122: 0.03513315374
B123: 13.0 | C123: 1127.33958 | D123: 0.03459472257
B124: 13.1 | C124: 1153.555741 | D124: 0.03406857475
B125: 13.2 | C125: 1180.17522 | D125: 0.03355433949
B126: 13.3 | C126: 1207.201096 | D126: 0.03305165987
B127: 13.4 | C127: 1234.636446 | D127: 0.03256019221
B128: 13.5 | C128: 1262.484351 | D128: 0.03207960556
B129: 13.6 | C129: 1290.747888 | D129: 0.03160958106
B130: 13.7 | C130: 1319.430137 | D130: 0.03114981146
B131: 13.8 | C131: =PI()*k^2*B131^3/12 -> 1348.534176 | D131: =4/PI()/k^2/B131^2*dh -> 0.0307000006
B132: 13.9 | C132: 1378.063084 | D132: 0.03025986291
B133: =B132+0.1 -> 14.0 | C133: 1408.019939 | D133: 0.02982912303
B134: 14.1 | C134: 1438.407822 | D134: 0.02940751528
B135: 14.2 | C135: 1469.229809 | D135: 0.02899478334
B136: 14.3 | C136: 1500.488981 | D136: 0.02859067981
B137: 14.4 | C137: 1532.188415 | D137: 0.02819496583
B138: 14.5 | C138: 1564.331191 | D138: 0.02780741077
B139: 14.6 | C139: 1596.920387 | D139: 0.02742779186
B140: 14.7 | C140: 1629.959082 | D140: 0.0270558939
B141: 14.8 | C141: 1663.450356 | D141: 0.02669150892
B142: 14.9 | C142: 1697.397285 | D142: 0.0263344359
B143: 15.0 | C143: 1731.80295 | D143: 0.0259844805
B144: 15.1 | C144: 1766.670429 | D144: 0.02564145482
B145: 15.2 | C145: 1802.002802 | D145: 0.02530517708
B146: 15.3 | C146: 1837.803145 | D146: 0.02497547146
B147: 15.4 | C147: 1874.074539 | D147: 0.02465216779
B148: 15.5 | C148: 1910.820063 | D148: 0.02433510141
B149: 15.6 | C149: 1948.042794 | D149: 0.02402411289
B150: 15.7 | C150: 1985.745812 | D150: 0.02371904789
B151: 15.8 | C151: 2023.932195 | D151: 0.0234197569
B152: 15.9 | C152: 2062.605023 | D152: 0.02312609514
B153: 16.0 | C153: 2101.767373 | D153: 0.02283792232
B154: 16.1 | C154: 2141.422325 | D154: 0.02255510248
B155: 16.2 | C155: 2181.572958 | D155: 0.02227750386
B156: 16.3 | C156: 2222.22235 | D156: 0.02200499873
B157: 16.4 | C157: 2263.37358 | D157: 0.02173746324
B158: 16.5 | C158: 2305.029727 | D158: 0.02147477728
B159: 16.6 | C159: 2347.193869 | D159: 0.02121682433
B160: 16.7 | C160: 2389.869086 | D160: 0.02096349139
B161: 16.8 | C161: 2433.058455 | D161: 0.02071466877
B162: 16.9 | C162: 2476.765057 | D162: 0.02047025004
B163: 17.0 | C163: 2520.991969 | D163: 0.02023013188
B164: 17.1 | C164: 2565.74227 | D164: 0.01999421399
B165: 17.2 | C165: 2611.01904 | D165: 0.01976239898
B166: 17.3 | C166: 2656.825356 | D166: 0.01953459225
B167: 17.4 | C167: 2703.164298 | D167: 0.01931070192
B168: 17.5 | C168: 2750.038944 | D168: 0.01909063874
B169: 17.6 | C169: 2797.452374 | D169: 0.01887431597
B170: 17.7 | C170: 2845.407665 | D170: 0.01866164931
B171: 17.8 | C171: 2893.907897 | D171: 0.01845255685
B172: 17.9 | C172: 2942.956148 | D172: 0.01824695894
B173: 18.0 | C173: 2992.555498 | D173: 0.01804477813
B174: 18.1 | C174: 3042.709025 | D174: 0.01784593912
B175: 18.2 | C175: 3093.419807 | D175: 0.01765036866
B176: 18.3 | C176: 3144.690924 | D176: 0.0174579955
B177: 18.4 | C177: 3196.525454 | D177: 0.01726875034
B178: 18.5 | C178: 3248.926476 | D178: 0.01708256571
B179: 18.6 | C179: 3301.897068 | D179: 0.01689937598
B180: 18.7 | C180: 3355.440311 | D180: 0.01671911726
B181: 18.8 | C181: 3409.559281 | D181: 0.01654172735
B182: 18.9 | C182: 3464.257058 | D182: 0.01636714569
B183: 19.0 | C183: 3519.536722 | D183: 0.01619531333
B184: 19.1 | C184: 3575.40135 | D184: 0.01602617284
B185: 19.2 | C185: 3631.854021 | D185: 0.01585966828
B186: 19.3 | C186: 3688.897814 | D186: 0.01569574516
B187: 19.4 | C187: 3746.535808 | D187: 0.01553435039
B188: 19.5 | C188: 3804.771082 | D188: 0.01537543225
B189: 19.6 | C189: 3863.606714 | D189: 0.01521894032
B190: 19.7 | C190: 3923.045783 | D190: 0.01506482546
B191: 19.8 | C191: 3983.091368 | D191: 0.01491303978
B192: 19.9 | C192: 4043.746548 | D192: 0.01476353656
B193: 20.0 | C193: 4105.014401 | D193: 0.01461627028
B194: 20.1 | C194: 4166.898006 | D194: 0.01447119654
B195: 20.2 | C195: =PI()*k^2*B195^3/12 -> 4229.400442 | D195: =4/PI()/k^2/B195^2*dh -> 0.01432827202
B196: 20.3 | C196: 4292.524788 | D196: 0.01418745447
B197: =B196+0.1 -> 20.4 | C197: 4356.274122 | D197: 0.0140487027
B198: 20.5 | C198: 4420.651524 | D198: 0.01391197647
B199: 20.6 | C199: 4485.660071 | D199: 0.01377723658
B200: 20.7 | C200: 4551.302843 | D200: 0.01364444471
B201: 20.8 | C201: 4617.582919 | D201: 0.0135135635
... 42 more rows

Sheet Sheet3
